[Event "3rd VIZAG GM-Open 2022"]
[Site "Visakapatnam"]
[Date "2022.06.16"]
[Round "9.16"]
[White "Weerawardane, Romesh"]
[Black "Konguvel, Ponnuswamy"]
[Result "0-1"]
[ECO "A26"]
[WhiteElo "2027"]
[BlackElo "2331"]
[Annotator "TA"]
[PlyCount "66"]
[EventDate "2022.06.13"]
[EventType "swiss"]
[EventCountry "IND"]
[SourceTitle "playchess.com"]
[Source "ChessBase"]
[SourceQuality "1"]
[TimeControl "5400+30"]

{[%evp 24,66,20,20,43,-10,-10,-10,-16,-14,-27,-86,-85,-90,-89,-89,-93,-80,-83,-82,-84,-145,-154,-156,-150,-155,-122,-132,-120,-275,-286,-280,-276,-393,-389,-567,-411,-387,-379,-507,-508,-593,-568,-711,-667]} 1. Nf3 {[%emt 0:00:09]} Nf6 {[%emt 0:00:12]} 2. g3 {[%emt 0:00:05]} g6 {[%emt 0:00:17]} 3. Bg2 {[%emt 0:00:08]} Bg7 {[%emt 0:00:17]} 4. O-O {[%emt 0:00:14]} O-O {[%emt 0:00:13]} 5. c4 {[%emt 0:00:17]} d6 {[%emt 0:00:43]} 6. Nc3 {[%emt 0:00:38]} e5 {[%emt 0:01:09]} 7. d3 {[%emt 0:00:05]} Nc6 {[%emt 0:01:21]} 8. Rb1 {[%emt 0:00:13]} h6 {[%emt 0:01:06]} 9. b4 {[%emt 0:00:44]} a6 {[%emt 0:00:09]} 10. a4 {[%emt 0:00:33]} Be6 {[%emt 0:00:05]} 11. b5 {[%emt 0:02:31]} axb5 {[%emt 0:00:05]} 12. axb5 {[%emt 0:00:05]} Ne7 {[%emt 0:00:05]} 13. Bb2 {[%emt 0:01:01]} c6 {[%emt 0:07:35] A26: English Opening vs King's Indian with ...Nc6 and d3.} 14. c5 {[%emt 0:07:01] [#]} ({White should play} 14. bxc6 $14 bxc6 15. c5) 14... dxc5 $146 {[%emt 0:23:05]} ({Predecessor:} 14... Nfd5 15. Ne4 dxc5 16. Nxc5 Bc8 17. Qb3 b6 18. Ne4 Be6 19. Bxe5 Bxe5 20. Nxe5 Nf4 21. Qb2 Nxg2 {1-0 (38) Anurag,M (2499)-Bobadilla Viera,J (2287) Chess.com INT 2020}) 15. Nxe5 {[%emt 0:02:07][%cal Rb5c6]} cxb5 {[%emt 0:00:05] The position is equal.} 16. Nxb5 {[%emt 0:01:47]} Ba2 $1 {[%emt 0:01:43]} 17. Ra1 {[%emt 0:04:44]} ({Wrong is} 17. Bxb7 $2 Rb8 18. Rc1 Qb6 $19) (17. Qc2 $11 {keeps the balance.}) 17... Qb6 $17 {[%emt 0:01:35]} 18. Ba3 {[%emt 0:05:11]} Qxb5 {[%emt 0:11:45]} 19. Rxa2 {[%emt 0:01:37] Strongly threatening Rb2.} Nfd5 {[%emt 0:00:05]} 20. Rb2 {[%emt 0:24:35]} Qa6 {[%emt 0:02:49]} 21. Bxc5 {[%emt 0:00:42] d4 is the strong threat.} Bxe5 {[%emt 0:00:35]} 22. d4 {[%emt 0:08:35]} (22. Bxe7 $142 Nxe7 23. d4) 22... Bd6 {[%emt 0:02:24]} 23. Bxd6 {[%emt 0:05:46]} Qxd6 {[%emt 0:00:02]} 24. Rxb7 {[%emt 0:00:06]} Rab8 {[%emt 0:03:02]} 25. Rxb8 {[%emt 0:02:43]} Rxb8 {[%emt 0:00:04]} ({Worse is} 25... Qxb8 26. Qd2 $17) 26. e4 $2 {[%emt 0:00:28]} (26. Qd2 $17) 26... Nc3 $19 {[%emt 0:00:31]} 27. Qd2 {[%emt 0:00:08] [#]} Qxd4 {[%emt 0:00:47]} 28. Qxh6 {[%emt 0:00:20]} (28. Qxd4 {is a better defense.} Ne2+ 29. Kh1 Nxd4 30. Rd1) 28... Nc6 {[%emt 0:08:15]} 29. Re1 {[%emt 0:05:53]} (29. e5 $142 Nxe5 30. Qe3) 29... Rb2 {[%emt 0:05:24]} 30. Qe3 {[%emt 0:08:36]} Qxe3 {[%emt 0:00:37]} 31. fxe3 {[%emt 0:00:12]} Ne5 {[%emt 0:00:28] Black is clearly winning.} 32. h3 {[%emt 0:00:27]} Ne2+ {[%emt 0:01:29]} 33. Kh2 {[%emt 0:00:05] [#]} Nf4 $1 {[%emt 0:00:16][%mdl 512] Black took control after the opening.  Weighted Error Value: White=0.53/Black=0.11 (very precise)} 0-1

[Event "3rd VIZAG GM-Open 2022"]
[Site "Visakapatnam"]
[Date "2022.06.16"]
[Round "9.17"]
[White "Pawar, Harshit"]
[Black "Aradhya, Garg"]
[Result "1-0"]
[ECO "A33"]
[WhiteElo "1961"]
[BlackElo "2275"]
[Annotator "TA"]
[PlyCount "153"]
[EventDate "2022.06.13"]
[EventType "swiss"]
[EventCountry "IND"]
[SourceTitle "playchess.com"]
[Source "ChessBase"]
[SourceQuality "1"]
[TimeControl "5400+30"]

{[%evp 11,152,6,4,13,19,0,0,0,0,0,6,-7,0,0,0,0,0,-9,-11,-14,-6,-12,-1,-10,0,0,0,0,0,0,0,0,134,137,137,133,161,165,154,142,234,225,218,0,0,0,0,0,0,0,0,0,19,21,25,23,185,16,189,168,183,-31,187,183,298,295,295,295,295,289,356,301,410,409,407,402,389,356,356,356,341,339,402,374,312,305,812,794,754,736,721,476,417,410,450,410,410,410,5004,4602,12803,5937,29976,29978,29978,29979,29979,29980,29980,29981,29982,29982,29982,29982,29982,29983,29983,29984,29987,29988,29988,29989,29989,29990,29990,29991,29995,29988,29988,29989,29989,29990,29990,29988,29989,29989,29993,29994,29996,29997,29998,29999,29999]} 1. Nf3 {[%emt 0:00:08]} d5 {[%emt 0:00:06]} 2. e3 {[%emt 0:00:27]} c5 {[%emt 0:05:39]} 3. d4 {[%emt 0:01:13]} Nf6 {[%emt 0:00:54]} 4. c4 {[%emt 0:01:14]} e6 {[%emt 0:00:30]} 5. Nc3 {[%emt 0:00:25]} cxd4 {[%emt 0:00:45]} 6. Nxd4 {[%emt 0:01:28]} Nc6 {[%emt 0:07:41]} 7. cxd5 {[%emt 0:12:23] A33: Symmetrical English: 2 Nf3 Nf6 3 d4 cxd4 4 Nxd4 e6 5 Nc3 Nc6.} Nxd5 {[%emt 0:04:28]} 8. Bb5 {[%emt 0:00:02]} Nxc3 {[%emt 0:00:18]} 9. bxc3 {[%emt 0:00:10] The position is equal.} Bd7 {[%emt 0:00:19]} 10. Nxc6 {[%emt 0:02:13]} bxc6 {[%emt 0:03:47] [#]} 11. Be2 $146 {[%emt 0:01:20]} ({Predecessor:} 11. Bd3 Qa5 12. Bd2 Rb8 13. Qc2 Ba3 14. Rb1 Ke7 15. O-O h6 16. c4 Qh5 {½-½ (16) Kadukowski,P (1863)-Lech,P (1897) Szubin 2009}) 11... Be7 {[%emt 0:01:32]} 12. O-O {[%emt 0:00:30]} O-O {[%emt 0:01:10]} 13. Rb1 {[%emt 0:03:20]} Qc7 {[%emt 0:00:37]} 14. e4 {[%emt 0:03:58]} c5 {[%emt 0:07:10]} 15. Be3 {[%emt 0:15:29]} (15. g3 $5 {[%cal Rc1f4]}) 15... Bc6 {[%emt 0:01:37]} 16. f3 {[%emt 0:04:06]} Bd6 {[%emt 0:20:55]} 17. g3 {[%emt 0:02:42]} Bxg3 {[%emt 0:02:59]} 18. hxg3 {[%emt 0:01:02]} Qxg3+ {[%emt 0:00:03]} 19. Kh1 {[%emt 0:00:01] Strongly threatening Rf2.} Qh3+ {[%emt 0:00:02]} 20. Kg1 {[%emt 0:00:02] Bf4 is the strong threat.} Qg3+ {[%emt 0:00:02]} 21. Kh1 {[%emt 0:00:01] Threatens to win with Rf2.} f5 {[%emt 0:00:42]} (21... Bxe4 $11 {remains equal.} 22. Rb2 Qh3+ 23. Kg1 Qg3+ 24. Kh1 Qh3+ 25. Kg1 Qg3+ 26. Kh1) 22. Rf2 $1 $16 {[%emt 0:09:29]} (22. Bxc5 Rf6) (22. Qe1 $2 Qh3+ 23. Kg1 fxe4 $19) 22... fxe4 {[%emt 0:00:07]} 23. Qg1 {[%emt 0:00:18] Really sharp!} Qxg1+ {[%emt 0:05:45]} 24. Kxg1 {[%emt 0:03:08]} exf3 {[%emt 0:00:05]} 25. Bc4 {[%emt 0:00:11]} ({Wrong is} 25. Bxc5 $2 Rf5 26. Bxf3 Bxf3 $19) 25... Kh8 {[%emt 0:03:13]} (25... Rae8 $16 {was worth a try.} 26. Bxc5 Rf4) 26. Bxc5 $18 {[%emt 0:05:34] This bishop pair is nice.} ({Worse is} 26. Bxe6 Rfe8 27. Bd7 Bxd7 $17) 26... Rf4 {[%emt 0:03:21]} 27. Rb4 {[%emt 0:08:53]} ({White should play} 27. Bxe6 $18 {And now Rfb2 would win.} Re8 28. Bh3) 27... a5 $11 {[%emt 0:02:36]} 28. Rb6 {[%emt 0:01:57]} Rxc4 {[%emt 0:00:39]} 29. Rxc6 {[%emt 0:00:02]} Rxc3 {[%emt 0:01:00]} 30. Rb2 {[%emt 0:07:42][%cal Oc6a6]} h6 {[%emt 0:04:52]} 31. Rb3 {[%emt 0:00:56]} Rc1+ {[%emt 0:04:45]} 32. Kf2 {[%emt 0:00:13][%mdl 1024] White has compensation.} a4 {[%emt 0:00:34]} 33. Rb7 {[%emt 0:02:38]} Ra5 $2 {[%emt 0:10:12] [#]} (33... Rd8 $11) 34. Rc8+ $1 $18 {[%emt 0:01:01]} Kh7 {[%emt 0:00:01] [#]} 35. Bd4 {[%emt 0:00:39][%csl Gd4][%cal Rb7g7][%mdl 64] Discovered Attack} Rxc8 {[%emt 0:00:22]} 36. Rxg7+ {[%emt 0:00:11][%mdl 4096] Endgame KRR-KRB} Kh8 {[%emt 0:00:01]} 37. Rc7+ $1 {[%emt 0:00:12][%mdl 64] Discovered Attack} e5 {[%emt 0:01:03]} (37... Kg8 {might work better.} 38. Rxc8+ Kf7 39. Kxf3 a3) 38. Rxc8+ {[%emt 0:00:12] KRB-KR} Kh7 {[%emt 0:00:02]} 39. Bc3 {[%emt 0:00:30]} Rb5 {[%emt 0:01:18]} 40. Kxf3 {[%emt 0:00:31]} Rb1 {[%emt 0:01:39]} 41. Bxe5 {[%emt 0:01:45]} Rb4 {[%emt 0:00:37]} 42. Bc3 {[%emt 0:01:25]} Rh4 {[%emt 0:00:01]} 43. a3 {[%emt 0:01:09]} Kg6 {[%emt 0:00:13]} 44. Rc6+ {[%emt 0:00:31]} Kf5 {[%emt 0:00:31]} 45. Rc5+ {[%emt 0:00:03]} Ke6 {[%emt 0:00:07]} 46. Bb4 {[%emt 0:00:08]} Kd7 {[%emt 0:00:49]} 47. Ra5 {[%emt 0:00:21]} Kc6 {[%emt 0:00:19]} 48. Rxa4 {[%emt 0:00:02] Black must now prevent Ra5.} Kb7 $2 {[%emt 0:00:39]} (48... Kb5) 49. Ra5 {[%emt 0:00:16]} Kb6 {[%emt 0:00:20]} 50. Rf5 {[%emt 0:00:25]} Ka6 {[%emt 0:00:17]} 51. Kg3 {[%emt 0:00:23]} Rh1 {[%emt 0:00:08]} 52. a4 {[%emt 0:00:18][%cal Ba3a4,Ba4a5,Ba5a6][%mdl 32] Threatening mate with Rf6+.} Rb1 {[%emt 0:00:36]} 53. Rf6+ {[%emt 0:01:30]} Kb7 {[%emt 0:00:11]} 54. Bd2 {[%emt 0:00:21] White threatens a5 and mate.} h5 {[%emt 0:03:03]} (54... Rd1 $142 55. Bxh6 Ra1) 55. a5 {[%emt 0:00:13]} Rg1+ {[%emt 0:00:40]} 56. Kf2 {[%emt 0:00:19]} Rg8 {[%emt 0:01:33]} 57. a6+ {[%emt 0:00:52] White mates.} Ka8 {[%emt 0:00:25]} 58. Rh6 {[%emt 0:00:37]} Rf8+ {[%emt 0:00:10]} 59. Ke2 {[%emt 0:00:14]} h4 {[%emt 0:01:07]} 60. Be3 {[%emt 0:00:13]} Re8 {[%emt 0:00:18]} 61. Rxh4 {[%emt 0:00:52]} Rd8 {[%emt 0:00:08]} 62. Bd4 {[%emt 0:00:52]} Rf8 {[%emt 0:00:34]} 63. Kd3 {[%emt 0:00:32]} Rc8 {[%emt 0:00:06]} 64. Rh7 {[%emt 0:00:22]} Re8 {[%emt 0:01:03]} 65. Kc4 {[%emt 0:00:26]} Rd8 {[%emt 0:00:44]} 66. Bc5 {[%emt 0:00:24]} Rg8 {[%emt 0:00:19]} 67. Kb5 {[%emt 0:01:04]} Re8 {[%emt 0:00:40]} 68. Bd6 {[%emt 0:00:27]} Rc8 {[%emt 0:00:34]} 69. Ka5 {[%emt 0:02:15]} ({Not} 69. Kb6 Rc6+ 70. Kb5 Rxd6 $11) 69... Rd8 {[%emt 0:00:16]} 70. Bc5 {[%emt 0:03:07]} Re8 {[%emt 0:00:16]} 71. Rd7 {[%emt 0:00:49]} Rg8 {[%emt 0:00:31]} 72. Rc7 {[%emt 0:02:45]} Rh8 {[%emt 0:00:26]} 73. Kb5 {[%emt 0:01:09]} Kb8 {[%emt 0:01:10]} 74. Bd6 {[%emt 0:00:29]} Ka8 {[%emt 0:01:11]} 75. Kb6 {[%emt 0:00:09][%csl Gb6][%cal Rc7a7]} Rb8+ {[%emt 0:00:13]} 76. Rb7 {[%emt 0:00:01]} Rxb7+ {[%emt 0:00:08]} 77. axb7# {[%emt 0:00:05] Weighted Error Value: White=0.17 (very precise) /Black=0.46} 1-0

[Event "3rd VIZAG GM-Open 2022"]
[Site "Visakapatnam"]
[Date "2022.06.16"]
[Round "9.18"]
[White "Nawin M S"]
[Black "Saravana, Krishnan P."]
[Result "0-1"]
[ECO "B11"]
[WhiteElo "1714"]
[BlackElo "2269"]
[Annotator "TA"]
[PlyCount "146"]
[EventDate "2022.06.13"]
[EventType "swiss"]
[EventCountry "IND"]
[SourceTitle "playchess.com"]
[Source "ChessBase"]
[SourceQuality "1"]
[TimeControl "5400+30"]

{[%evp 9,145,24,32,16,14,18,20,16,11,-11,0,-23,-8,-14,0,-36,-35,-35,-34,-34,-32,-38,-32,-30,-19,-17,-18,-27,-29,-25,-24,-19,-7,-7,-7,-12,0,0,0,0,0,0,0,0,0,-20,-16,-50,-15,-12,-16,-9,-3,-7,0,-10,-5,-12,-9,-6,0,-50,-41,-129,-76,-173,-195,-170,0,0,0,-27,0,0,0,-51,0,0,0,0,0,0,235,-29964,-29962,-29967,-29970,-29964,-999,-29971,-29974,-29972,-29974,-29978,-29979,-29979,-29980,-29982,-29983,-29983,-29984,-29984,-29985,-29985,-29985,-29985,-29986,-29986,-29987,-29988,-29988,-29988,-29989,-29990,-29991,-29991,-29992,-29992,-29993,-29993,-29994,-29994,-29995,-29995,-29994,-29994,-5097,-29994,-29995,-29995,-29996,-29996,-29997,-29997,-29998,-29998,-29999,-29999]} 1. e4 {[%emt 0:00:03]} c6 {[%emt 0:00:07]} 2. Nc3 {[%emt 0:00:09]} d5 {[%emt 0:00:06]} 3. Nf3 {[%emt 0:00:06]} Bg4 {[%emt 0:00:07]} 4. d4 {[%emt 0:00:42]} dxe4 {[%emt 0:05:54]} 5. Nxe4 {[%emt 0:00:31]} Nf6 {[%emt 0:00:06]} 6. Bd3 {[%emt 0:05:11] B11: Caro-Kann: Two Knights Variation.} (6. Nxf6+ {is interesting.} exf6 7. Bd3 Bd6 8. h3) 6... Nxe4 {[%emt 0:03:26]} 7. Bxe4 {[%emt 0:00:06]} Nd7 {[%emt 0:00:05]} 8. c3 {[%emt 0:05:18] The position is equal.} Nf6 {[%emt 0:00:42]} 9. Bc2 {[%emt 0:00:07]} Qd5 {[%emt 0:06:39]} 10. h3 {[%emt 0:09:15] [#]} Bh5 $146 {[%emt 0:01:27]} ({Predecessor:} 10... Bxf3 11. Qxf3 Qxf3 12. gxf3 e6 13. Bg5 Nd5 14. Be4 Bd6 15. Ke2 Kd7 {0-1 (57) Anand,V (2757)-Carlsen,M (2870) Kolkata 2019}) 11. Bb3 {[%emt 0:06:22]} Qe4+ {[%emt 0:08:35]} 12. Qe2 {[%emt 0:04:21]} Bxf3 {[%emt 0:02:47]} 13. gxf3 {[%emt 0:00:02]} Qxe2+ {[%emt 0:01:06]} 14. Kxe2 {[%emt 0:00:02]} e6 {[%emt 0:00:06]} 15. Rd1 {[%emt 0:06:00]} g6 {[%emt 0:03:20]} 16. c4 {[%emt 0:06:30]} Bg7 {[%emt 0:00:49]} 17. d5 {[%emt 0:04:58]} exd5 {[%emt 0:01:50]} (17... cxd5 {looks sharper.} 18. cxd5 Nxd5 19. Bxd5 exd5 20. Rxd5 Rd8) 18. cxd5 {[%emt 0:00:07]} Nxd5 {[%emt 0:00:12]} 19. Bxd5 {[%emt 0:00:22]} cxd5 {[%emt 0:00:06]} 20. Rxd5 {[%emt 0:00:08]} O-O {[%emt 0:00:08]} 21. Be3 {[%emt 0:02:01]} b6 {[%emt 0:02:26]} 22. Rd2 {[%emt 0:06:23]} Rfe8 {[%emt 0:07:46]} 23. Rc1 {[%emt 0:05:42]} Re7 {[%emt 0:07:53]} 24. f4 {[%emt 0:05:31]} f5 {[%emt 0:05:23]} 25. b3 {[%emt 0:00:51]} Kf7 {[%emt 0:00:24]} 26. Kf3 {[%emt 0:03:34]} Rae8 {[%emt 0:01:47]} 27. Bd4 {[%emt 0:03:15]} Rd8 {[%emt 0:01:51]} 28. Rcd1 {[%emt 0:01:46]} Bxd4 {[%emt 0:15:41]} (28... Red7 $5 {[%cal Rd7d4]} 29. Bc3 Rxd2 30. Rxd2 Rxd2 31. Bxd2 b5 $15) 29. Rxd4 {[%emt 0:00:02]} Rxd4 {[%emt 0:00:09]} 30. Rxd4 $15 {[%emt 0:00:02][%mdl 4096] Endgame KR-KR} Rc7 {[%emt 0:00:08]} 31. Rc4 {[%emt 0:06:30]} Rd7 {[%emt 0:00:20]} 32. Ke3 {[%emt 0:00:48]} Ke6 {[%emt 0:00:19]} 33. Rd4 {[%emt 0:03:52]} Re7 {[%emt 0:01:03]} 34. Kd3 {[%emt 0:00:28]} Kf6 {[%emt 0:03:52]} 35. Rd6+ {[%emt 0:01:07]} ({White should try} 35. a4 $11) 35... Kg7 {[%emt 0:00:46]} 36. Kc4 {[%emt 0:01:29]} (36. Rd5 $1 $15) 36... Kh6 {[%emt 0:01:45]} (36... Re2 $142 37. Rd7+ Kh6 38. Rxa7 Rxf2) 37. Kb5 {[%emt 0:02:11]} (37. a4 $17) 37... Re2 $19 {[%emt 0:01:17][%csl LRa2,LRf2]} 38. a4 {[%emt 0:00:58]} Rb2 $2 {[%emt 0:02:08] [#]} ({Black should play} 38... Rxf2 $19 {Threatens to win with ...Rf3.} 39. Ka6 Rxf4 40. Kxa7 Kg5 41. Rxb6 Rd4) 39. b4 $1 $11 {[%emt 0:02:19]} Rxf2 {[%emt 0:08:02]} 40. Rd4 {[%emt 0:05:32]} g5 {[%emt 0:00:26]} (40... Rb2 $5 {[%cal Ra7a5]} 41. Rd6 Rb3 $17) 41. fxg5+ {[%emt 0:00:35]} Kxg5 {[%emt 0:00:05] aiming for ...Rf4.} 42. Ka6 {[%emt 0:00:04]} (42. h4+ $11 Kf6 43. Rd6+ (43. Rd7 f4 $11) 43... Ke5 44. Rd7) 42... Ra2 {[%emt 0:00:34]} (42... Re2 $1 $15 43. h4+ Kh5 44. Kxa7 Re4) 43. b5 {[%emt 0:01:30]} f4 {[%emt 0:00:09]} 44. Kxa7 {[%emt 0:00:05]} f3 {[%emt 0:00:07] [#] And now ...f2 would win.} 45. Kxb6 {[%emt 0:00:26]} f2 $2 {[%emt 0:00:08]} (45... Ra1 $1 $11 46. Rg4+ Kf5) 46. Rd1 $4 {[%emt 0:00:02][%mdl 8192]} (46. Rg4+ $18 Kf5 47. Rg8) 46... Rxa4 {[%emt 0:00:10]} 47. Rf1 {[%emt 0:00:58]} Ra2 {[%emt 0:00:07]} 48. Kc7 {[%emt 0:02:06]} Kf4 {[%emt 0:01:24]} (48... Rb2 $142 49. b6 Kh4 50. b7 Kg3 51. h4 Kg2 52. Rd1 f1=Q 53. Rxf1 Kxf1 54. h5 Kf2 55. h6 Kf3 56. Kc8 Kg4 57. b8=Q Rxb8+ 58. Kxb8 Kg5 59. Kc7 Kxh6 60. Kd6 Kg5 61. Ke5 h5 62. Ke4 Kg4 63. Ke3 Kg3 64. Ke2 Kg2 65. Kd3 h4 66. Ke3 h3 67. Ke4 h2 68. Kf5 Kf3 69. Kf6 h1=Q 70. Ke7 Qh6 71. Kf7 Kf4 72. Ke8 Ke5 73. Kd7 Qc1 74. Ke7 Qc7+ 75. Ke8 Kf6 76. Kf8 Qf7#) 49. b6 {[%emt 0:00:52]} Rc2+ {[%emt 0:00:21]} 50. Kd7 {[%emt 0:00:20]} Rb2 {[%emt 0:00:14]} 51. Kc7 {[%emt 0:00:01]} Kg3 {[%emt 0:00:27]} 52. b7 {[%emt 0:02:02]} Kg2 {[%emt 0:00:12]} 53. b8=Q {[%emt 0:02:08]} Rxb8 {[%emt 0:00:31]} 54. Rxf2+ {[%emt 0:00:01]} Kxf2 {[%emt 0:00:10]} 55. Kxb8 {[%emt 0:00:06] KP-KP} h5 {[%emt 0:00:33]} 56. Kc7 {[%emt 0:00:09]} h4 {[%emt 0:00:11]} 57. Kd6 {[%emt 0:00:04]} Kg3 {[%emt 0:00:05]} 58. Ke5 {[%emt 0:00:05]} Kxh3 {[%emt 0:00:04] KP-K} 59. Ke4 {[%emt 0:00:07]} Kg2 {[%emt 0:00:04]} 60. Ke3 {[%emt 0:00:05]} h3 {[%emt 0:00:05]} 61. Ke2 {[%emt 0:00:07]} h2 {[%emt 0:00:24]} 62. Ke3 {[%emt 0:00:14]} h1=Q {[%emt 0:00:09]} 63. Ke4 {[%emt 0:00:02]} Qh5 {[%emt 0:00:13]} 64. Kd4 {[%emt 0:00:09]} Qb5 {[%emt 0:00:08]} 65. Kc3 {[%emt 0:00:05]} Qa4 {[%emt 0:00:08]} 66. Kb2 {[%emt 0:00:04]} Qc4 {[%emt 0:00:07]} 67. Kb1 {[%emt 0:00:17]} Qc3 {[%emt 0:00:12]} 68. Ka2 {[%emt 0:00:03]} Qb4 {[%emt 0:00:04] Black mates.} 69. Ka1 {[%emt 0:00:02]} Kf3 {[%emt 0:00:05][%cal Bg2f3,Bf3e3,Be3d3,Bd3c2][%mdl 32]} 70. Ka2 {[%emt 0:00:03]} Ke3 {[%emt 0:00:06]} 71. Ka1 {[%emt 0:00:01]} Kd3 {[%emt 0:00:05]} 72. Ka2 {[%emt 0:00:02]} Kc2 {[%emt 0:00:07][%csl Gc2][%cal Rb4b2]} 73. Ka1 {[%emt 0:00:01]} Qb2# {[%emt 0:00:08] Weighted Error Value: White=0.30/Black=0.31} 0-1

[Event "3rd VIZAG GM-Open 2022"]
[Site "Visakapatnam"]
[Date "2022.06.17"]
[Round "10.1"]
[White "Amonatov, Farrukh"]
[Black "Savchenko, Boris"]
[Result "0-1"]
[ECO "C10"]
[WhiteElo "2622"]
[BlackElo "2524"]
[Annotator "TA"]
[PlyCount "68"]
[EventDate "2022.06.13"]
[EventType "swiss"]
[EventCountry "IND"]
[SourceTitle "playchess.com"]
[Source "ChessBase"]
[SourceQuality "1"]
[TimeControl "5400+30"]

{[%evp 15,68,0,2,13,10,0,0,-13,-18,-15,-15,-13,-18,-26,-22,-25,-9,-10,-15,-20,0,-4,0,0,0,0,0,0,0,0,0,0,0,-337,-339,-1377,-961,-5618,-5397,-1845,-669,-644,-647,-637,-617,-588,-568,-29989,-29990,-29990,-29991,-29994,-29995,-29995,-29996]} 1. e4 {[%emt 0:00:04]} e6 {[%emt 0:04:09]} 2. d4 {[%emt 0:00:21]} d5 {[%emt 0:01:04]} 3. Nc3 {[%emt 0:00:05]} dxe4 {[%emt 0:00:09]} 4. Nxe4 {[%emt 0:00:05]} Nd7 {[%emt 0:00:06]} 5. Nf3 {[%emt 0:00:53]} Ngf6 {[%emt 0:00:17]} 6. Bg5 {[%emt 0:02:13]} h6 {[%emt 0:03:00]} 7. Nxf6+ {[%emt 0:00:38]} Nxf6 {[%emt 0:00:05]} 8. Be3 {[%emt 0:00:05] now scores much better than the old 8.Bh4.} Nd5 {[%emt 0:02:15]} 9. Bd2 {[%emt 0:02:37] 9.Bd3 is vanishing. C10: French with 3 Nc3: Unusual Black 3rd moves and 3...dxe4.} c5 {[%emt 0:00:22]} 10. c4 {[%emt 0:02:55]} Nf6 {[%emt 0:00:24]} 11. dxc5 {[%emt 0:12:31] The position is equal.} Bxc5 {[%emt 0:04:16] Hoping for ...Ng4.} 12. b4 {[%emt 0:00:12]} Be7 {[%emt 0:03:00]} 13. Qc2 {[%emt 0:00:13] [#]} a5 $5 $146 {[%emt 0:03:50][%mdl 8] An interesting novelty.} ({Predecessor:} 13... O-O 14. Be2 b6 15. O-O Bb7 16. Rfd1 Qc7 17. Bc3 Rfd8 18. Be5 Qc6 19. Qb2 Rac8 {1-0 (41) Nevednichy,V (2524)-Magalashvili,D (2489) Konya 2017}) 14. b5 {[%emt 0:04:11]} b6 {[%emt 0:02:15]} 15. Be2 {[%emt 0:00:13]} Bb7 {[%emt 0:05:20]} 16. O-O {[%emt 0:00:37]} Qc7 {[%emt 0:01:48] Prevents Bf4.} 17. Bc3 {[%emt 0:15:38]} Ng4 {[%emt 0:34:23] ...Bxf3 is the strong threat.} 18. h3 {[%emt 0:06:43]} h5 {[%emt 0:15:03][%cal Bh6h5,Bh5g4][%mdl 32]} 19. Rfd1 {[%emt 0:23:48]} Bc5 $1 {[%emt 0:00:43]} 20. hxg4 {[%emt 0:00:43]} hxg4 {[%emt 0:00:05]} 21. Be5 {[%emt 0:00:19]} (21. Bxg7 $2 gxf3 $1 22. Bxh8 Qg3 $19) 21... Qe7 {[%emt 0:00:07] The board is on fire.} 22. Nh2 {[%emt 0:14:02]} ({But not} 22. Bxg7 $2 gxf3 $1 23. Bxf3 (23. Bxh8 $2 Qg5 $19) 23... Bxf3 $1 $19) 22... Rxh2 $1 {[%emt 0:00:16]} 23. Bxh2 {[%emt 0:00:29]} Qh4 $40 {[%emt 0:00:14][%mdl 128] Inhibits Qh7. Black has some attack.} 24. Bf1 $2 {[%emt 0:04:23][%mdl 8192]} (24. Bd3 $11 {and White is okay.} g3 25. Bxg3 $1 Qxg3 26. Be4 Bxe4 27. Qxe4 Qxf2+ 28. Kh2) 24... Ke7 $1 $19 {[%emt 0:06:42][%cal Be8e7,Be7f6,Bf6g6][%mdl 32]} 25. Bg3 $2 {[%emt 0:08:26]} (25. Qd3 {is a self mate.} Bxf2+ 26. Kh1 Qxh2+ $3 {[%mdl 512]} 27. Kxh2 Rh8+) ({Wrong is} 25. Qd2 $2 Rh8 26. Qd7+ Kf6 27. Be5+ Kg6 28. Bd3+ Kg5 29. Bf4+ Kf6 30. Be5+ Kxe5 31. Qc7+ Bd6 32. Qxd6+ Kxd6 $19) (25. Rd7+ Kxd7 26. Qd3+ Ke7 27. Qg3 Qxg3 28. Bxg3) 25... Qxg3 $1 {[%emt 0:00:24]} 26. Qd2 {[%emt 0:00:24]} Qh4 {[%emt 0:05:39] ( -> ...Rh8)} 27. Qf4 {[%emt 0:00:36] [#]} Rh8 {[%emt 0:00:26]} (27... Bxf2+ $142 $1 {[%mdl 512]} 28. Qxf2 g3 29. Qxg3 Qxg3) 28. Qc7+ {[%emt 0:00:01]} Kf6 {[%emt 0:00:08][%csl Gh4][%cal Rc5f2]} 29. Qf4+ {[%emt 0:00:01]} Kg6 {[%emt 0:00:14][%csl Gh8][%cal Rh4h1]} 30. Bd3+ {[%emt 0:00:01]} f5 {[%emt 0:00:09][%csl Gh8][%cal Rh4h1]} 31. Kf1 {[%emt 0:00:01] [#]} Bxg2+ $1 {[%emt 0:00:46][%mdl 512] Black mates.} 32. Ke1 {[%emt 0:00:01]} Bb4+ {[%emt 0:00:13] This bishop pair is nice.} 33. Rd2 {[%emt 0:00:52]} Qh1+ {[%emt 0:00:07]} 34. Ke2 {[%emt 0:00:00]} Bf3+ {[%emt 0:00:08] Weighted Error Value: White=0.96/Black=0.16 (very precise)} 0-1